{"text_format":"3","workbook":"xlsx","n_sheets":3,"sheets":["Početak","Proračun za poklone i tablica","Podaci"],"not_rendered":{"charts":1,"defined_names":1},"read":"whole","date_system":"1900"}

{"sheet":"Početak","index":0,"n_rows":7,"n_cols":2,"rows_kept":7}
[null,"O predlošku"]
[null,"Pomoću ovog predloška zabilježite kupnje poklona i pratite ih prema proračunu."]
[null,"U tablicu unesite imena članova obitelji i prijatelja, poklone, iznose u proračunu i utrošene iznose te bilješke. Odaberite prigodu i mjesec događaja."]
[null,"Grafikon mjesečnog pregleda automatski se ažurira."]
[null,"Napomena: "]
[null,"Dodatne su upute navedene u stupcu A na radnom listu PRORAČUN ZA POKLONE I ALAT ZA PRAĆENJE. Ovaj je tekst namjerno skriven. Da biste uklonili tekst, odaberite stupac A, a zatim odaberite IZBRIŠI. Da biste otkrili tekst, odaberite stupac A, a zatim promijenite boju fonta."]
[null,"Da biste saznali više o tablici, pritisnite SHIFT, a zatim F10 unutar tablice pa odaberite mogućnost TABLICA, a potom ZAMJENSKI TEKST."]

{"sheet":"Proračun za poklone i tablica","index":1,"n_rows":10,"n_cols":13,"rows_kept":10,"merged":[[0,1,0,4],[0,5,0,12],[1,1,1,2],[2,1,2,12],[3,1,3,3]]}
["Stvorite osobni proračun za poklone i alat za praćenje na ovom radnom listu. Naslov radnog lista nalazi se u ćeliji na desnoj strani, a savjet u ćeliji F1. Korisne upute za korištenje ovog radnog lista nalaze se u ćelijama u ovom stupcu.","Proračun za poklone i tablica",{"$nulls":3},"Ispunite što više možete na početku svake nove godine. Unesite imena obitelji i prijatelja, odaberite prigodu za poklon, odaberite mjesec događaja i upišite koliko želite potrošiti. Svaka se osoba može pojaviti više puta u tablici za svaku različitu prigodu (rođendan, praznik, darivanje itd.)."]
["Oznaka mjesečnog pregleda nalazi se u ćeliji na desnoj strani, a savjet u ćeliji D2.","Mjesečni pregled",null,"Pomoću grafikona pogledajte nadolazeće mjesece da biste planirali unaprijed. Zabilježite kupnje da biste ih pratili prema proračunu."]
["Stupčasti grafikon za planirane iznose s prekrivajućim linijskim grafikonom za potrošeni iznos nalazi se u ćeliji na desnoj strani.","Stupčasti grafikon za planirane iznose s prekrivajućim linijskim grafikonom za potrošeni iznos nalazi se u ovoj ćeliji."]
["Oznaka Proračun za poklon i alat za praćenje nalazi se u ćeliji na desnoj strani.","Proračun za poklone i tablica"]
["Unesite pojedinosti u tablicu alata za praćenje proračuna počevši od ćelije na desnoj strani.","Osoba","Prigoda","Mjesec","Iznos\nplanirano","Iznos\npotrošeno","Poklon","Veza na poklon","U trgovini/\nNa mreži","Kupljeno?","Zamotano?","Isporučeno?","Bilješke"]
[null,"Ime i prezime 1","Rođendani","Lipanj",{"v":50,"d":"50 kn"},{"v":30,"d":"30 kn"},"Cipele","Prodavatelj","Na mreži","Da","Ne","Ne","16/6, ulaznice za film"]
[null,"Ime i prezime 2","Obljetnice","Travanj",{"v":20,"d":"20 kn"},{"v":20,"d":"20 kn"},"Mačka","Prodavatelj","U trgovini","Ne","Ne","Ne","Spomenuo je da mu se sviđaju psi"]
[null,"Ime i prezime 3","Praznici","Srpanj",{"v":50,"d":"50 kn"},{"v":70,"d":"70 kn"},"Slušalice","Prodavatelj","Na mreži","Ne","Ne","Ne","Stvari u studentskom domu"]
[null,"Ime i prezime 4","Rođendani","Siječanj",{"v":20,"d":"20 kn"},{"v":30,"d":"30 kn"},"Igra","Prodavatelj","U trgovini","Da","Da","Da"]
[null,"Ime i prezime 5","Vjenčanja","Lipanj",{"v":100,"d":"100 kn"},{"v":150,"d":"150 kn"},"Kristalna vaza","Prodavatelj","U trgovini","Da","Da","Ne"]

{"sheet":"Podaci","index":2,"n_rows":13,"n_cols":8,"rows_kept":13,"hidden":true}
["Prigode",null,"Datum","Datum","Iznos obuhvaćen proračunom\nRođendani","Iznos obuhvaćen proračunom\nPraznici","Iznos obuhvaćen proračunom\nOstalo","Potrošeni iznos"]
["Rođendani",null,"Siječanj","Sij",{"$f":"SUMIFS(TablicaProračuna[Iznos\nplanirano],TablicaProračuna[Mjesec],\"Siječanj\",TablicaProračuna[Prigoda],\"Rođendani\")","v":{"v":20,"d":"20 kn"}},{"$f":"SUMIFS(TablicaProračuna[Iznos\nplanirano],TablicaProračuna[Mjesec],\"Siječanj\",TablicaProračuna[Prigoda],\"Praznici\")","v":{"v":0,"d":"0 kn"}},{"$f":"SUMIFS(TablicaProračuna[Iznos\nplanirano],TablicaProračuna[Mjesec],\"Siječanj\",TablicaProračuna[Prigoda],\"<>Praznici\",TablicaProračuna[Prigoda],\"<>Rođendani\")","v":{"v":0,"d":"0 kn"}},{"$f":"SUMIFS(TablicaProračuna[Iznos\npotrošeno],TablicaProračuna[Mjesec],\"Siječanj\")","v":{"v":30,"d":"30 kn"}}]
["Praznici",null,"Veljača","Velj",{"$f":"SUMIFS(TablicaProračuna[Iznos\nplanirano],TablicaProračuna[Mjesec],\"Veljača\",TablicaProračuna[Prigoda],\"Rođendani\")","v":{"v":0,"d":"0 kn"}},{"$f":"SUMIFS(TablicaProračuna[Iznos\nplanirano],TablicaProračuna[Mjesec],\"Veljača\",TablicaProračuna[Prigoda],\"Praznici\")","v":{"v":0,"d":"0 kn"}},{"$f":"SUMIFS(TablicaProračuna[Iznos\nplanirano],TablicaProračuna[Mjesec],\"Veljača\",TablicaProračuna[Prigoda],\"<>Praznici\",TablicaProračuna[Prigoda],\"<>Rođendani\")","v":{"v":0,"d":"0 kn"}},{"$f":"SUMIFS(TablicaProračuna[Iznos\npotrošeno],TablicaProračuna[Mjesec],\"Veljača\")","v":{"v":0,"d":"0 kn"}}]
["Obljetnice",null,"Ožujak","Ožu",{"$f":"SUMIFS(TablicaProračuna[Iznos\nplanirano],TablicaProračuna[Mjesec],\"Ožujak\",TablicaProračuna[Prigoda],\"Rođendani\")","v":{"v":0,"d":"0 kn"}},{"$f":"SUMIFS(TablicaProračuna[Iznos\nplanirano],TablicaProračuna[Mjesec],\"Ožujak\",TablicaProračuna[Prigoda],\"Praznici\")","v":{"v":0,"d":"0 kn"}},{"$f":"SUMIFS(TablicaProračuna[Iznos\nplanirano],TablicaProračuna[Mjesec],\"Ožujak\",TablicaProračuna[Prigoda],\"<>Praznici\",TablicaProračuna[Prigoda],\"<>Rođendani\")","v":{"v":0,"d":"0 kn"}},{"$f":"SUMIFS(TablicaProračuna[Iznos\npotrošeno],TablicaProračuna[Mjesec],\"Ožujak\")","v":{"v":0,"d":"0 kn"}}]
["Vjenčanja",null,"Travanj","Tra",{"$f":"SUMIFS(TablicaProračuna[Iznos\nplanirano],TablicaProračuna[Mjesec],\"Travanj\",TablicaProračuna[Prigoda],\"Rođendani\")","v":{"v":0,"d":"0 kn"}},{"$f":"SUMIFS(TablicaProračuna[Iznos\nplanirano],TablicaProračuna[Mjesec],\"Travanj\",TablicaProračuna[Prigoda],\"Praznici\")","v":{"v":0,"d":"0 kn"}},{"$f":"SUMIFS(TablicaProračuna[Iznos\nplanirano],TablicaProračuna[Mjesec],\"Travanj\",TablicaProračuna[Prigoda],\"<>Praznici\",TablicaProračuna[Prigoda],\"<>Rođendani\")","v":{"v":20,"d":"20 kn"}},{"$f":"SUMIFS(TablicaProračuna[Iznos\npotrošeno],TablicaProračuna[Mjesec],\"Travanj\")","v":{"v":20,"d":"20 kn"}}]
["Djevojačke zabave",null,"Svi","Svi",{"$f":"SUMIFS(TablicaProračuna[Iznos\nplanirano],TablicaProračuna[Mjesec],\"Svi\",TablicaProračuna[Prigoda],\"Rođendani\")","v":{"v":0,"d":"0 kn"}},{"$f":"SUMIFS(TablicaProračuna[Iznos\nplanirano],TablicaProračuna[Mjesec],\"Svi\",TablicaProračuna[Prigoda],\"Praznici\")","v":{"v":0,"d":"0 kn"}},{"$f":"SUMIFS(TablicaProračuna[Iznos\nplanirano],TablicaProračuna[Mjesec],\"Svi\",TablicaProračuna[Prigoda],\"<>Praznici\",TablicaProračuna[Prigoda],\"<>Rođendani\")","v":{"v":0,"d":"0 kn"}},{"$f":"SUMIFS(TablicaProračuna[Iznos\npotrošeno],TablicaProračuna[Mjesec],\"Svi\")","v":{"v":0,"d":"0 kn"}}]
["Zabave za darivanje djeteta",null,"Lipanj","Lip",{"$f":"SUMIFS(TablicaProračuna[Iznos\nplanirano],TablicaProračuna[Mjesec],\"Lipanj\",TablicaProračuna[Prigoda],\"Rođendani\")","v":{"v":50,"d":"50 kn"}},{"$f":"SUMIFS(TablicaProračuna[Iznos\nplanirano],TablicaProračuna[Mjesec],\"Lipanj\",TablicaProračuna[Prigoda],\"Praznici\")","v":{"v":0,"d":"0 kn"}},{"$f":"SUMIFS(TablicaProračuna[Iznos\nplanirano],TablicaProračuna[Mjesec],\"Lipanj\",TablicaProračuna[Prigoda],\"<>Praznici\",TablicaProračuna[Prigoda],\"<>Rođendani\")","v":{"v":100,"d":"100 kn"}},{"$f":"SUMIFS(TablicaProračuna[Iznos\npotrošeno],TablicaProračuna[Mjesec],\"Lipanj\")","v":{"v":180,"d":"180 kn"}}]
["Stjecanja diplome",null,"Srpanj","Srp",{"$f":"SUMIFS(TablicaProračuna[Iznos\nplanirano],TablicaProračuna[Mjesec],\"Srpanj\",TablicaProračuna[Prigoda],\"Rođendani\")","v":{"v":0,"d":"0 kn"}},{"$f":"SUMIFS(TablicaProračuna[Iznos\nplanirano],TablicaProračuna[Mjesec],\"Srpanj\",TablicaProračuna[Prigoda],\"Praznici\")","v":{"v":50,"d":"50 kn"}},{"$f":"SUMIFS(TablicaProračuna[Iznos\nplanirano],TablicaProračuna[Mjesec],\"Srpanj\",TablicaProračuna[Prigoda],\"<>Praznici\",TablicaProračuna[Prigoda],\"<>Rođendani\")","v":{"v":0,"d":"0 kn"}},{"$f":"SUMIFS(TablicaProračuna[Iznos\npotrošeno],TablicaProračuna[Mjesec],\"Srpanj\")","v":{"v":70,"d":"70 kn"}}]
["Ostalo",null,"Kolovoz","Kol",{"$f":"SUMIFS(TablicaProračuna[Iznos\nplanirano],TablicaProračuna[Mjesec],\"Kolovoz\",TablicaProračuna[Prigoda],\"Rođendani\")","v":{"v":0,"d":"0 kn"}},{"$f":"SUMIFS(TablicaProračuna[Iznos\nplanirano],TablicaProračuna[Mjesec],\"Kolovoz\",TablicaProračuna[Prigoda],\"Praznici\")","v":{"v":0,"d":"0 kn"}},{"$f":"SUMIFS(TablicaProračuna[Iznos\nplanirano],TablicaProračuna[Mjesec],\"Kolovoz\",TablicaProračuna[Prigoda],\"<>Praznici\",TablicaProračuna[Prigoda],\"<>Rođendani\")","v":{"v":0,"d":"0 kn"}},{"$f":"SUMIFS(TablicaProračuna[Iznos\npotrošeno],TablicaProračuna[Mjesec],\"Kolovoz\")","v":{"v":0,"d":"0 kn"}}]
[null,null,"Rujan","Ruj",{"$f":"SUMIFS(TablicaProračuna[Iznos\nplanirano],TablicaProračuna[Mjesec],\"Rujan\",TablicaProračuna[Prigoda],\"Rođendani\")","v":{"v":0,"d":"0 kn"}},{"$f":"SUMIFS(TablicaProračuna[Iznos\nplanirano],TablicaProračuna[Mjesec],\"Rujan\",TablicaProračuna[Prigoda],\"Praznici\")","v":{"v":0,"d":"0 kn"}},{"$f":"SUMIFS(TablicaProračuna[Iznos\nplanirano],TablicaProračuna[Mjesec],\"Rujan\",TablicaProračuna[Prigoda],\"<>Praznici\",TablicaProračuna[Prigoda],\"<>Rođendani\")","v":{"v":0,"d":"0 kn"}},{"$f":"SUMIFS(TablicaProračuna[Iznos\npotrošeno],TablicaProračuna[Mjesec],\"Rujan\")","v":{"v":0,"d":"0 kn"}}]
[null,null,"Listopad","Lis",{"$f":"SUMIFS(TablicaProračuna[Iznos\nplanirano],TablicaProračuna[Mjesec],\"Listopad\",TablicaProračuna[Prigoda],\"Rođendani\")","v":{"v":0,"d":"0 kn"}},{"$f":"SUMIFS(TablicaProračuna[Iznos\nplanirano],TablicaProračuna[Mjesec],\"Listopad\",TablicaProračuna[Prigoda],\"Praznici\")","v":{"v":0,"d":"0 kn"}},{"$f":"SUMIFS(TablicaProračuna[Iznos\nplanirano],TablicaProračuna[Mjesec],\"Listopad\",TablicaProračuna[Prigoda],\"<>Praznici\",TablicaProračuna[Prigoda],\"<>Rođendani\")","v":{"v":0,"d":"0 kn"}},{"$f":"SUMIFS(TablicaProračuna[Iznos\npotrošeno],TablicaProračuna[Mjesec],\"Listopad\")","v":{"v":0,"d":"0 kn"}}]
[null,null,"Studeni","Stu",{"$f":"SUMIFS(TablicaProračuna[Iznos\nplanirano],TablicaProračuna[Mjesec],\"Studeni\",TablicaProračuna[Prigoda],\"Rođendani\")","v":{"v":0,"d":"0 kn"}},{"$f":"SUMIFS(TablicaProračuna[Iznos\nplanirano],TablicaProračuna[Mjesec],\"Studeni\",TablicaProračuna[Prigoda],\"Praznici\")","v":{"v":0,"d":"0 kn"}},{"$f":"SUMIFS(TablicaProračuna[Iznos\nplanirano],TablicaProračuna[Mjesec],\"Studeni\",TablicaProračuna[Prigoda],\"<>Praznici\",TablicaProračuna[Prigoda],\"<>Rođendani\")","v":{"v":0,"d":"0 kn"}},{"$f":"SUMIFS(TablicaProračuna[Iznos\npotrošeno],TablicaProračuna[Mjesec],\"Studeni\")","v":{"v":0,"d":"0 kn"}}]
[null,null,"Prosinac","Pro",{"$f":"SUMIFS(TablicaProračuna[Iznos\nplanirano],TablicaProračuna[Mjesec],\"Prosinac\",TablicaProračuna[Prigoda],\"Rođendani\")","v":{"v":0,"d":"0 kn"}},{"$f":"SUMIFS(TablicaProračuna[Iznos\nplanirano],TablicaProračuna[Mjesec],\"Prosinac\",TablicaProračuna[Prigoda],\"Praznici\")","v":{"v":0,"d":"0 kn"}},{"$f":"SUMIFS(TablicaProračuna[Iznos\nplanirano],TablicaProračuna[Mjesec],\"Prosinac\",TablicaProračuna[Prigoda],\"<>Praznici\",TablicaProračuna[Prigoda],\"<>Rođendani\")","v":{"v":0,"d":"0 kn"}},{"$f":"SUMIFS(TablicaProračuna[Iznos\npotrošeno],TablicaProračuna[Mjesec],\"Prosinac\")","v":{"v":0,"d":"0 kn"}}]